[Event "Titled Tuesday Blitz March 01 Late 2022"]
[White "Paravyan, David"]
[Black "Mardov, Dimitar"]
[WhiteFideId "4194985"]
[BlackFideId "30919495"]
[WhiteElo "2569"]
[BlackElo "2185"]
[Result "1-0"]
[Round "06"]
[TimeControl "180+1"]
[Date "2022.03.01"]
[WhiteClock "0:00:02"]
[BlackClock "0:00:01"]

1. e4 {[%clk 0:03:00]}  e5 {[%clk 0:02:51]} 2. Nf3 {[%clk 0:03:00]}  Nc6 {[%clk 0:02:48]} 3. Nc3 {[%clk 0:03:01]}  g6 {[%clk 0:02:45]} 4. d4 {[%clk 0:03:01]}  exd4 {[%clk 0:02:45]} 5. Nxd4 {[%clk 0:03:01]}  Bg7 {[%clk 0:02:45]} 6. Be3 {[%clk 0:02:59]}  Nf6 {[%clk 0:02:42]} 7. Be2 {[%clk 0:02:49]}  O-O {[%clk 0:02:42]} 8. Nxc6 {[%clk 0:02:32]}  bxc6 {[%clk 0:02:39]} 9. e5 {[%clk 0:02:32]}  Nd5 {[%clk 0:02:23]} 10. Nxd5 {[%clk 0:02:31]}  cxd5 {[%clk 0:02:23]} 11. Qxd5 {[%clk 0:02:32]}  Rb8 {[%clk 0:02:15]} 12. O-O {[%clk 0:02:31]}  Rxb2 {[%clk 0:02:13]} 13. Bd3 {[%clk 0:02:21]}  Bb7 {[%clk 0:01:50]} 14. Qd4 {[%clk 0:02:13]}  Rb6 {[%clk 0:01:33]} 15. Qg4 {[%clk 0:02:07]}  Bxe5 {[%clk 0:01:25]} 16. Bxb6 {[%clk 0:02:06]}  Bxa1 {[%clk 0:01:19]} 17. Bxa7 {[%clk 0:02:05]}  Bg7 {[%clk 0:01:17]} 18. Be3 {[%clk 0:02:02]}  Qa8 {[%clk 0:01:07]} 19. Bc4 {[%clk 0:01:51]}  d5 {[%clk 0:01:03]} 20. Bb3 {[%clk 0:01:49]}  d4 {[%clk 0:01:01]} 21. Bf4 {[%clk 0:01:45]}  c5 {[%clk 0:01:00]} 22. Bd6 {[%clk 0:01:42]}  Rc8 {[%clk 0:01:00]} 23. Bc4 {[%clk 0:01:30]}  Ba6 {[%clk 0:00:46]} 24. Bxa6 {[%clk 0:00:51]}  Qxa6 {[%clk 0:00:47]} 25. Rb1 {[%clk 0:00:49]}  f5 {[%clk 0:00:43]} 26. Qf4 {[%clk 0:00:40]}  Qxa2 {[%clk 0:00:41]} 27. Qc1 {[%clk 0:00:35]}  Qd5 {[%clk 0:00:38]} 28. Bf4 {[%clk 0:00:33]}  c4 {[%clk 0:00:38]} 29. Qd2 {[%clk 0:00:33]}  Re8 {[%clk 0:00:32]} 30. h3 {[%clk 0:00:32]}  d3 {[%clk 0:00:31]} 31. cxd3 {[%clk 0:00:32]}  cxd3 {[%clk 0:00:31]} 32. Rd1 {[%clk 0:00:32]}  Re2 {[%clk 0:00:27]} 33. Qc1 {[%clk 0:00:25]}  Re8 {[%clk 0:00:19]} 34. Be3 {[%clk 0:00:23]}  Rd8 {[%clk 0:00:17]} 35. Qc7 {[%clk 0:00:23]}  Qd7 {[%clk 0:00:17]} 36. Qc4+ {[%clk 0:00:22]}  Qf7 {[%clk 0:00:15]} 37. Qa6 {[%clk 0:00:20]}  Qd5 {[%clk 0:00:15]} 38. Rc1 {[%clk 0:00:21]}  d2 {[%clk 0:00:11]} 39. Rd1 {[%clk 0:00:21]}  Qd3 {[%clk 0:00:11]} 40. Qa2+ {[%clk 0:00:19]}  Qd5 {[%clk 0:00:12]} 41. Qc2 {[%clk 0:00:19]}  Qe4 {[%clk 0:00:11]} 42. Qb3+ {[%clk 0:00:13]}  Qd5 {[%clk 0:00:10]} 43. Qb4 {[%clk 0:00:12]}  Qe4 {[%clk 0:00:08]} 44. Qa5 {[%clk 0:00:12]}  Qd5 {[%clk 0:00:07]} 45. Qb4 {[%clk 0:00:10]}  Qe4 {[%clk 0:00:07]} 46. Qb6 {[%clk 0:00:07]}  Qe8 {[%clk 0:00:04]} 47. Qb3+ {[%clk 0:00:06]}  Qf7 {[%clk 0:00:04]} 48. Qc2 {[%clk 0:00:04]}  Qe8 {[%clk 0:00:03]} 49. Bxd2 {[%clk 0:00:03]}  Kh8 {[%clk 0:00:03]} 50. Re1 {[%clk 0:00:02]}  Qd7 {[%clk 0:00:04]} 51. Bg5 {[%clk 0:00:02]}  Rc8 {[%clk 0:00:04]} 52. Qe2 {[%clk 0:00:02]}  Qf7 {[%clk 0:00:04]} 53. Bf4 {[%clk 0:00:02]}  h6 {[%clk 0:00:04]} 54. h4 {[%clk 0:00:02]}  Kh7 {[%clk 0:00:04]} 55. g3 {[%clk 0:00:02]}  Rc6 {[%clk 0:00:04]} 56. Kh2 {[%clk 0:00:02]}  Rc8 {[%clk 0:00:03]} 57. Qf3 {[%clk 0:00:02]}  Rc3 {[%clk 0:00:03]} 58. Qg2 {[%clk 0:00:02]}  Rc2 {[%clk 0:00:03]} 59. Bd6 {[%clk 0:00:02]}  Rc8 {[%clk 0:00:02]} 60. Re7 {[%clk 0:00:01]}  Qf6 {[%clk 0:00:02]} 61. Qb7 {[%clk 0:00:02]}  Rg8 {[%clk 0:00:02]} 62. Be5 {[%clk 0:00:02]}  Qf8 {[%clk 0:00:02]} 63. Rf7 {[%clk 0:00:02]}  Qa8 {[%clk 0:00:01]} 64. Rxg7+ {[%clk 0:00:02]} 1-0


[Site "https://www.chess.com"]

[Event "Titled Tuesday Blitz March 01 Late 2022"]
[White "Piesik, Piotr"]
[Black "Svane, Rasmus"]
[WhiteFideId "1136194"]
[BlackFideId "4657101"]
[WhiteElo "2232"]
[BlackElo "2645"]
[Result "1/2-1/2"]
[Round "06"]
[TimeControl "180+1"]
[Date "2022.03.01"]
[WhiteClock "0:01:13"]
[BlackClock "0:01:04"]

1. Nf3 {[%clk 0:02:56]}  d5 {[%clk 0:03:00]} 2. g3 {[%clk 0:02:56]}  Nd7 {[%clk 0:02:54]} 3. Bg2 {[%clk 0:02:56]}  e5 {[%clk 0:02:54]} 4. d3 {[%clk 0:02:56]}  Ngf6 {[%clk 0:02:55]} 5. O-O {[%clk 0:02:56]}  Bd6 {[%clk 0:02:55]} 6. Nbd2 {[%clk 0:02:56]}  O-O {[%clk 0:02:55]} 7. e4 {[%clk 0:02:57]}  c6 {[%clk 0:02:56]} 8. Qe2 {[%clk 0:02:56]}  Re8 {[%clk 0:02:56]} 9. Nb3 {[%clk 0:02:55]}  a5 {[%clk 0:02:56]} 10. a4 {[%clk 0:02:55]}  b6 {[%clk 0:02:57]} 11. Bg5 {[%clk 0:02:52]}  dxe4 {[%clk 0:02:56]} 12. dxe4 {[%clk 0:02:52]}  Ba6 {[%clk 0:02:56]} 13. c4 {[%clk 0:02:52]}  h6 {[%clk 0:02:56]} 14. Bxf6 {[%clk 0:02:50]}  Qxf6 {[%clk 0:02:53]} 15. Rfd1 {[%clk 0:02:50]}  Nc5 {[%clk 0:02:53]} 16. Nxc5 {[%clk 0:02:49]}  Bxc5 {[%clk 0:02:53]} 17. b3 {[%clk 0:02:43]}  Rad8 {[%clk 0:02:51]} 18. Rxd8 {[%clk 0:02:39]}  Rxd8 {[%clk 0:02:52]} 19. Rd1 {[%clk 0:02:40]}  Rxd1+ {[%clk 0:02:47]} 20. Qxd1 {[%clk 0:02:41]}  Bc8 {[%clk 0:02:48]} 21. Qd3 {[%clk 0:02:36]}  g6 {[%clk 0:02:40]} 22. h3 {[%clk 0:02:26]}  Kg7 {[%clk 0:02:40]} 23. Qc3 {[%clk 0:02:21]}  Bd6 {[%clk 0:02:37]} 24. c5 {[%clk 0:02:16]}  Bxc5 {[%clk 0:02:32]} 25. Qxe5 {[%clk 0:02:16]}  Qxe5 {[%clk 0:02:26]} 26. Nxe5 {[%clk 0:02:17]}  Be6 {[%clk 0:02:27]} 27. Nc4 {[%clk 0:02:14]}  Bb4 {[%clk 0:02:20]} 28. Bf1 {[%clk 0:02:04]}  b5 {[%clk 0:02:19]} 29. Ne5 {[%clk 0:01:56]}  Bxb3 {[%clk 0:02:12]} 30. axb5 {[%clk 0:01:56]}  cxb5 {[%clk 0:02:13]} 31. Bxb5 {[%clk 0:01:55]}  a4 {[%clk 0:02:13]} 32. Bc4 {[%clk 0:01:46]}  Bc3 {[%clk 0:02:04]} 33. Bxb3 {[%clk 0:01:44]}  axb3 {[%clk 0:02:05]} 34. Nc4 {[%clk 0:01:44]}  b2 {[%clk 0:02:05]} 35. Na3 {[%clk 0:01:44]}  Kf6 {[%clk 0:02:03]} 36. f4 {[%clk 0:01:44]}  Ke6 {[%clk 0:02:03]} 37. Kf2 {[%clk 0:01:44]}  Kd6 {[%clk 0:02:04]} 38. Nb5+ {[%clk 0:01:43]}  Kc5 {[%clk 0:02:00]} 39. Nxc3 {[%clk 0:01:44]}  Kd4 {[%clk 0:01:59]} 40. Nb1 {[%clk 0:01:41]}  Kxe4 {[%clk 0:01:54]} 41. Ke2 {[%clk 0:01:41]}  f5 {[%clk 0:01:47]} 42. Nc3+ {[%clk 0:01:40]}  Kd4 {[%clk 0:01:45]} 43. Kd2 {[%clk 0:01:40]}  g5 {[%clk 0:01:19]} 44. fxg5 {[%clk 0:01:30]}  hxg5 {[%clk 0:01:19]} 45. h4 {[%clk 0:01:27]}  gxh4 {[%clk 0:01:18]} 46. gxh4 {[%clk 0:01:28]}  f4 {[%clk 0:01:11]} 47. h5 {[%clk 0:01:17]}  Ke5 {[%clk 0:01:10]} 48. Ke2 {[%clk 0:01:17]}  Kf5 {[%clk 0:01:05]} 49. Kf3 {[%clk 0:01:17]}  Kg5 {[%clk 0:01:05]} 50. Nb1 {[%clk 0:01:09]}  Kxh5 {[%clk 0:01:02]} 51. Kxf4 {[%clk 0:01:10]}  Kg6 {[%clk 0:01:02]} 52. Ke3 {[%clk 0:01:11]}  Kf5 {[%clk 0:01:03]} 53. Kd3 {[%clk 0:01:12]}  Ke5 {[%clk 0:01:03]} 54. Kc3 {[%clk 0:01:13]}  Kd5 {[%clk 0:01:04]} 55. Kxb2 {[%clk 0:01:13]} 1/2-1/2


[Site "https://www.chess.com"]

[Event "Titled Tuesday Blitz March 01 Late 2022"]
[White "Ponkratov, Pavel"]
[Black "Yuan, Qingyu"]
[WhiteFideId "4157800"]
[BlackFideId "8609772"]
[WhiteElo "2487"]
[BlackElo "2359"]
[Result "0-1"]
[Round "06"]
[TimeControl "180+1"]
[Date "2022.03.01"]
[WhiteClock "0:00:15"]
[BlackClock "0:00:11"]

1. c4 {[%clk 0:02:57]}  g6 {[%clk 0:02:58]} 2. Nc3 {[%clk 0:02:57]}  Bg7 {[%clk 0:02:58]} 3. d4 {[%clk 0:02:58]}  c5 {[%clk 0:02:54]} 4. dxc5 {[%clk 0:02:58]}  Bxc3+ {[%clk 0:02:44]} 5. bxc3 {[%clk 0:02:58]}  Qa5 {[%clk 0:02:45]} 6. Nf3 {[%clk 0:02:57]}  Nc6 {[%clk 0:02:40]} 7. e4 {[%clk 0:02:56]}  Nf6 {[%clk 0:02:24]} 8. Nd2 {[%clk 0:02:38]}  Qxc3 {[%clk 0:02:16]} 9. Rb1 {[%clk 0:02:37]}  Nxe4 {[%clk 0:02:15]} 10. Rb3 {[%clk 0:02:35]}  Qd4 {[%clk 0:02:01]} 11. Nxe4 {[%clk 0:02:27]}  Qxe4+ {[%clk 0:01:59]} 12. Re3 {[%clk 0:02:28]}  Qd4 {[%clk 0:01:45]} 13. Bd3 {[%clk 0:02:24]}  Qxc5 {[%clk 0:01:21]} 14. O-O {[%clk 0:02:23]}  d6 {[%clk 0:01:21]} 15. Bb2 {[%clk 0:02:20]}  e5 {[%clk 0:01:17]} 16. Kh1 {[%clk 0:02:20]}  Be6 {[%clk 0:01:16]} 17. Re2 {[%clk 0:02:15]}  O-O {[%clk 0:01:04]} 18. f4 {[%clk 0:02:15]}  Bxc4 {[%clk 0:00:55]} 19. Rc2 {[%clk 0:02:14]}  b5 {[%clk 0:00:54]} 20. f5 {[%clk 0:02:15]}  Nb4 {[%clk 0:00:47]} 21. Ba3 {[%clk 0:02:08]}  a5 {[%clk 0:00:47]} 22. f6 {[%clk 0:02:06]}  Qe3 {[%clk 0:00:39]} 23. Rf3 {[%clk 0:01:55]}  Qd4 {[%clk 0:00:32]} 24. Qc1 {[%clk 0:01:32]}  Qh4 {[%clk 0:00:23]} 25. Bxb4 {[%clk 0:00:51]}  axb4 {[%clk 0:00:23]} 26. g3 {[%clk 0:00:47]}  Qh5 {[%clk 0:00:21]} 27. Be4 {[%clk 0:00:44]}  d5 {[%clk 0:00:21]} 28. g4 {[%clk 0:00:44]}  Qh4 {[%clk 0:00:19]} 29. Bd3 {[%clk 0:00:32]}  e4 {[%clk 0:00:15]} 30. Bxc4 {[%clk 0:00:31]}  exf3 {[%clk 0:00:15]} 31. Bxd5 {[%clk 0:00:29]}  Rad8 {[%clk 0:00:15]} 32. Bxf3 {[%clk 0:00:25]}  Qxf6 {[%clk 0:00:16]} 33. Rf2 {[%clk 0:00:25]}  Qc3 {[%clk 0:00:15]} 34. Qf4 {[%clk 0:00:22]}  Rd4 {[%clk 0:00:14]} 35. Qg5 {[%clk 0:00:20]}  Qd3 {[%clk 0:00:05]} 36. Kg2 {[%clk 0:00:20]}  b3 {[%clk 0:00:05]} 37. axb3 {[%clk 0:00:20]}  Qxb3 {[%clk 0:00:05]} 38. h4 {[%clk 0:00:20]}  Qc3 {[%clk 0:00:05]} 39. h5 {[%clk 0:00:21]}  Rd3 {[%clk 0:00:05]} 40. h6 {[%clk 0:00:20]}  Qd4 {[%clk 0:00:05]} 41. Qxb5 {[%clk 0:00:19]}  Rd2 {[%clk 0:00:05]} 42. Be2 {[%clk 0:00:19]}  Qe4+ {[%clk 0:00:04]} 43. Kh2 {[%clk 0:00:18]}  Qd4 {[%clk 0:00:04]} 44. Kg2 {[%clk 0:00:18]}  Qd5+ {[%clk 0:00:03]} 45. Qxd5 {[%clk 0:00:17]}  Rxd5 {[%clk 0:00:04]} 46. Bc4 {[%clk 0:00:17]}  Rc5 {[%clk 0:00:04]} 47. Ba2 {[%clk 0:00:17]}  g5 {[%clk 0:00:04]} 48. Kg3 {[%clk 0:00:17]}  Rc3+ {[%clk 0:00:04]} 49. Kg2 {[%clk 0:00:17]}  Rc6 {[%clk 0:00:04]} 50. Bd5 {[%clk 0:00:15]}  Rxh6 {[%clk 0:00:04]} 51. Rf5 {[%clk 0:00:15]}  Rg6 {[%clk 0:00:04]} 52. Kg3 {[%clk 0:00:16]}  Kg7 {[%clk 0:00:04]} 53. Be4 {[%clk 0:00:16]}  h6 {[%clk 0:00:04]} 54. Rb5 {[%clk 0:00:16]}  Re6 {[%clk 0:00:05]} 55. Bf5 {[%clk 0:00:16]}  Rf6 {[%clk 0:00:05]} 56. Kf2 {[%clk 0:00:17]}  Re8 {[%clk 0:00:05]} 57. Kf3 {[%clk 0:00:17]}  Re7 {[%clk 0:00:05]} 58. Rb8 {[%clk 0:00:17]}  Rd6 {[%clk 0:00:05]} 59. Rb3 {[%clk 0:00:17]}  Rc6 {[%clk 0:00:05]} 60. Be4 {[%clk 0:00:17]}  Rc4 {[%clk 0:00:06]} 61. Bd5 {[%clk 0:00:16]}  Rf4+ {[%clk 0:00:07]} 62. Kg3 {[%clk 0:00:16]}  Rd7 {[%clk 0:00:07]} 63. Bf3 {[%clk 0:00:16]}  Rdd4 {[%clk 0:00:07]} 64. Re3 {[%clk 0:00:15]}  Rb4 {[%clk 0:00:07]} 65. Rc3 {[%clk 0:00:15]}  Ra4 {[%clk 0:00:07]} 66. Rd3 {[%clk 0:00:15]}  Ra5 {[%clk 0:00:08]} 67. Rc3 {[%clk 0:00:15]}  Rfa4 {[%clk 0:00:08]} 68. Rc7 {[%clk 0:00:14]}  Ra3 {[%clk 0:00:09]} 69. Kf2 {[%clk 0:00:15]}  Ra2+ {[%clk 0:00:09]} 70. Ke3 {[%clk 0:00:15]}  R5a3+ {[%clk 0:00:10]} 71. Ke4 {[%clk 0:00:15]}  Rb2 {[%clk 0:00:10]} 72. Bd1 {[%clk 0:00:15]}  Rb4+ {[%clk 0:00:10]} 73. Kd5 {[%clk 0:00:15]}  Ra5+ {[%clk 0:00:10]} 74. Kd6 {[%clk 0:00:15]}  Rd4+ {[%clk 0:00:10]} 75. Ke7 {[%clk 0:00:15]}  Re5# {[%clk 0:00:11]} 0-1


[Site "https://www.chess.com"]

[Event "Titled Tuesday Blitz March 01 Late 2022"]
[White "Romanchuk, Viktor"]
[Black "Jakubowska, Anna"]
[WhiteFideId "14109271"]
[BlackFideId "1121952"]
[WhiteElo "2242"]
[BlackElo "1924"]
[Result "1-0"]
[Round "06"]
[TimeControl "180+1"]
[Date "2022.03.02"]
[WhiteClock "0:02:27"]
[BlackClock "0:01:31"]

1. d4 {[%clk 0:03:00]}  d5 {[%clk 0:02:57]} 2. c4 {[%clk 0:03:00]}  c6 {[%clk 0:02:58]} 3. Nc3 {[%clk 0:03:00]}  Nf6 {[%clk 0:02:58]} 4. e3 {[%clk 0:03:00]}  e6 {[%clk 0:02:57]} 5. Nf3 {[%clk 0:03:00]}  Nbd7 {[%clk 0:02:57]} 6. Qc2 {[%clk 0:03:01]}  Bd6 {[%clk 0:02:57]} 7. b3 {[%clk 0:03:01]}  O-O {[%clk 0:02:57]} 8. Bb2 {[%clk 0:03:02]}  Qe7 {[%clk 0:02:57]} 9. Be2 {[%clk 0:03:01]}  dxc4 {[%clk 0:02:53]} 10. bxc4 {[%clk 0:03:02]}  e5 {[%clk 0:02:54]} 11. O-O {[%clk 0:03:02]}  e4 {[%clk 0:02:50]} 12. Nd2 {[%clk 0:03:01]}  Re8 {[%clk 0:02:50]} 13. Rad1 {[%clk 0:03:01]}  Nf8 {[%clk 0:02:50]} 14. c5 {[%clk 0:03:01]}  Bb8 {[%clk 0:02:48]} 15. Nc4 {[%clk 0:03:02]}  Ng6 {[%clk 0:02:31]} 16. d5 {[%clk 0:02:59]}  cxd5 {[%clk 0:02:30]} 17. Nd6 {[%clk 0:02:58]}  Bxd6 {[%clk 0:02:26]} 18. cxd6 {[%clk 0:02:59]}  Qxd6 {[%clk 0:02:27]} 19. Nb5 {[%clk 0:02:58]}  Qe7 {[%clk 0:02:04]} 20. Nc7 {[%clk 0:02:57]}  Bg4 {[%clk 0:02:04]} 21. Bxf6 {[%clk 0:02:56]}  gxf6 {[%clk 0:01:59]} 22. Bxg4 {[%clk 0:02:48]}  Ne5 {[%clk 0:01:39]} 23. Bh3 {[%clk 0:02:37]}  f5 {[%clk 0:01:35]} 24. Nxa8 {[%clk 0:02:30]}  Rxa8 {[%clk 0:01:31]} 25. Rxd5 {[%clk 0:02:27]} 1-0


[Site "https://www.chess.com"]

[Event "Titled Tuesday Blitz March 01 Late 2022"]
[White "Rosen, Eric"]
[Black "Jaskolka, Tomasz"]
[WhiteFideId "2032562"]
[BlackFideId "1170791"]
[WhiteElo "2362"]
[BlackElo "2054"]
[Result "1-0"]
[Round "06"]
[TimeControl "180+1"]
[Date "2022.03.02"]
[WhiteClock "0:00:30"]
[BlackClock "0:00:33"]

1. d4 {[%clk 0:03:00]}  e6 {[%clk 0:02:58]} 2. Bf4 {[%clk 0:03:00]}  d5 {[%clk 0:02:54]} 3. e3 {[%clk 0:03:00]}  Nf6 {[%clk 0:02:53]} 4. Nf3 {[%clk 0:03:00]}  c5 {[%clk 0:02:54]} 5. Nbd2 {[%clk 0:02:57]}  Nc6 {[%clk 0:02:53]} 6. c3 {[%clk 0:02:58]}  Bd6 {[%clk 0:02:53]} 7. Bg3 {[%clk 0:02:58]}  O-O {[%clk 0:02:52]} 8. Bb5 {[%clk 0:02:56]}  Ne7 {[%clk 0:02:51]} 9. Bd3 {[%clk 0:02:55]}  b6 {[%clk 0:02:48]} 10. e4 {[%clk 0:02:55]}  dxe4 {[%clk 0:02:40]} 11. Nxe4 {[%clk 0:02:55]}  Nxe4 {[%clk 0:02:40]} 12. Bxe4 {[%clk 0:02:54]}  Rb8 {[%clk 0:02:07]} 13. dxc5 {[%clk 0:02:54]}  Bxg3 {[%clk 0:02:02]} 14. Qxd8 {[%clk 0:02:50]}  Rxd8 {[%clk 0:02:01]} 15. hxg3 {[%clk 0:02:47]}  f5 {[%clk 0:02:00]} 16. c6 {[%clk 0:02:47]}  Nd5 {[%clk 0:01:28]} 17. Bxd5 {[%clk 0:02:43]}  Rxd5 {[%clk 0:01:28]} 18. Rd1 {[%clk 0:02:42]}  Ba6 {[%clk 0:01:24]} 19. Rxd5 {[%clk 0:02:38]}  exd5 {[%clk 0:01:24]} 20. Nd4 {[%clk 0:02:20]}  g6 {[%clk 0:01:21]} 21. Kd2 {[%clk 0:02:13]}  Re8 {[%clk 0:01:10]} 22. b4 {[%clk 0:02:00]}  Bc4 {[%clk 0:01:05]} 23. Re1 {[%clk 0:01:56]}  Rxe1 {[%clk 0:01:04]} 24. Kxe1 {[%clk 0:01:57]}  Kf7 {[%clk 0:01:04]} 25. c7 {[%clk 0:01:32]}  Ba6 {[%clk 0:01:04]} 26. Nb5 {[%clk 0:01:18]}  Ke7 {[%clk 0:01:01]} 27. Nxa7 {[%clk 0:01:18]}  Kd7 {[%clk 0:01:02]} 28. c8=Q+ {[%clk 0:01:18]}  Bxc8 {[%clk 0:01:02]} 29. Nxc8 {[%clk 0:01:19]}  Kxc8 {[%clk 0:01:03]} 30. Kd2 {[%clk 0:01:16]}  b5 {[%clk 0:01:01]} 31. Kc2 {[%clk 0:01:02]}  Kc7 {[%clk 0:00:56]} 32. Kb3 {[%clk 0:01:02]}  h5 {[%clk 0:00:51]} 33. a4 {[%clk 0:01:00]}  bxa4+ {[%clk 0:00:48]} 34. Kxa4 {[%clk 0:01:00]}  g5 {[%clk 0:00:48]} 35. f4 {[%clk 0:00:43]}  h4 {[%clk 0:00:34]} 36. gxh4 {[%clk 0:00:32]}  gxf4 {[%clk 0:00:32]} 37. h5 {[%clk 0:00:30]}  Kc6 {[%clk 0:00:33]} 38. h6 {[%clk 0:00:30]} 1-0


[Site "https://www.chess.com"]

[Event "Titled Tuesday Blitz March 01 Late 2022"]
[White "Rudykh, Stepan"]
[Black "Carre, Sylvain"]
[WhiteFideId "4180321"]
[BlackFideId "642118"]
[WhiteElo "2122"]
[BlackElo "2105"]
[Result "0-1"]
[Round "06"]
[TimeControl "180+1"]
[Date "2022.03.02"]
[WhiteClock "0:00:02"]
[BlackClock "0:00:27"]

1. e4 {[%clk 0:03:00]}  e5 {[%clk 0:02:59]} 2. Nf3 {[%clk 0:03:01]}  Nf6 {[%clk 0:02:59]} 3. Nxe5 {[%clk 0:03:00]}  d6 {[%clk 0:02:59]} 4. Nf3 {[%clk 0:03:00]}  Nxe4 {[%clk 0:02:59]} 5. d4 {[%clk 0:03:00]}  d5 {[%clk 0:02:59]} 6. Bd3 {[%clk 0:03:00]}  Bd6 {[%clk 0:03:00]} 7. c4 {[%clk 0:02:59]}  c6 {[%clk 0:03:00]} 8. Nc3 {[%clk 0:02:59]}  Nxc3 {[%clk 0:03:00]} 9. bxc3 {[%clk 0:02:59]}  O-O {[%clk 0:03:01]} 10. O-O {[%clk 0:02:58]}  Bg4 {[%clk 0:03:00]} 11. h3 {[%clk 0:02:54]}  Bh5 {[%clk 0:02:59]} 12. Be2 {[%clk 0:02:34]}  dxc4 {[%clk 0:02:57]} 13. Bxc4 {[%clk 0:02:32]}  b5 {[%clk 0:02:57]} 14. Bb3 {[%clk 0:02:31]}  Nd7 {[%clk 0:02:54]} 15. Qd3 {[%clk 0:02:27]}  Nb6 {[%clk 0:02:47]} 16. Ng5 {[%clk 0:02:10]}  Bg6 {[%clk 0:02:45]} 17. Qf3 {[%clk 0:02:09]}  Qc7 {[%clk 0:02:21]} 18. Ne4 {[%clk 0:02:03]}  Be7 {[%clk 0:02:10]} 19. Bf4 {[%clk 0:01:59]}  Qc8 {[%clk 0:01:58]} 20. Rfe1 {[%clk 0:01:50]}  Re8 {[%clk 0:01:53]} 21. Nd6 {[%clk 0:01:27]}  Bxd6 {[%clk 0:01:51]} 22. Bxd6 {[%clk 0:01:28]}  Qd7 {[%clk 0:01:44]} 23. Bc5 {[%clk 0:01:19]}  h6 {[%clk 0:01:32]} 24. Qg3 {[%clk 0:00:57]}  Nd5 {[%clk 0:01:26]} 25. a4 {[%clk 0:00:52]}  a6 {[%clk 0:01:19]} 26. axb5 {[%clk 0:00:17]}  axb5 {[%clk 0:01:17]} 27. Rxa8 {[%clk 0:00:18]}  Rxa8 {[%clk 0:01:17]} 28. Qe5 {[%clk 0:00:16]}  Nxc3 {[%clk 0:01:07]} 29. d5 {[%clk 0:00:15]}  Nxd5 {[%clk 0:01:01]} 30. Bd4 {[%clk 0:00:15]}  f6 {[%clk 0:00:52]} 31. Qg3 {[%clk 0:00:15]}  Kh7 {[%clk 0:00:45]} 32. Rc1 {[%clk 0:00:13]}  Ra3 {[%clk 0:00:36]} 33. h4 {[%clk 0:00:11]}  Qf5 {[%clk 0:00:31]} 34. Bc5 {[%clk 0:00:02]}  Qd3 {[%clk 0:00:27]} 0-1


[Site "https://www.chess.com"]

[Event "Titled Tuesday Blitz March 01 Late 2022"]
[White "Sadilek, Peter"]
[Black "Ribeiro, Matheus Mendes Domingues"]
[WhiteFideId "1616439"]
[BlackFideId "324226923"]
[WhiteElo "2145"]
[BlackElo "1886"]
[Result "0-1"]
[Round "06"]
[TimeControl "180+1"]
[Date "2022.03.02"]
[WhiteClock "0:00:01"]
[BlackClock "0:01:37"]

1. d4 {[%clk 0:02:26]}  d5 {[%clk 0:02:58]} 2. c4 {[%clk 0:02:24]}  e6 {[%clk 0:02:55]} 3. Nf3 {[%clk 0:02:24]}  Nf6 {[%clk 0:02:53]} 4. g3 {[%clk 0:02:24]}  Be7 {[%clk 0:02:50]} 5. Bg2 {[%clk 0:02:24]}  O-O {[%clk 0:02:50]} 6. b3 {[%clk 0:02:25]}  b6 {[%clk 0:02:45]} 7. O-O {[%clk 0:02:24]}  Bb7 {[%clk 0:02:46]} 8. Nc3 {[%clk 0:02:25]}  dxc4 {[%clk 0:02:46]} 9. bxc4 {[%clk 0:02:25]}  Nbd7 {[%clk 0:02:47]} 10. Bb2 {[%clk 0:02:18]}  c5 {[%clk 0:02:47]} 11. d5 {[%clk 0:02:18]}  exd5 {[%clk 0:02:42]} 12. cxd5 {[%clk 0:02:19]}  Re8 {[%clk 0:02:40]} 13. e4 {[%clk 0:02:18]}  Ng4 {[%clk 0:02:17]} 14. Qc2 {[%clk 0:02:06]}  Bf6 {[%clk 0:02:14]} 15. Rad1 {[%clk 0:01:55]}  Nge5 {[%clk 0:02:08]} 16. Nxe5 {[%clk 0:01:30]}  Nxe5 {[%clk 0:02:09]} 17. Nb5 {[%clk 0:00:56]}  a6 {[%clk 0:02:00]} 18. Na3 {[%clk 0:00:55]}  Rc8 {[%clk 0:02:00]} 19. h3 {[%clk 0:00:36]}  c4 {[%clk 0:01:42]} 20. Bd4 {[%clk 0:00:18]}  b5 {[%clk 0:01:41]} 21. Qc3 {[%clk 0:00:10]}  Nd3 {[%clk 0:01:37]} 22. Bxf6 {[%clk 0:00:02]}  gxf6 {[%clk 0:01:37]} 23. Nc2 {[%clk 0:00:01]}  Qd6 {[%clk 0:01:36]} 24. a3 {[%clk 0:00:01]}  Qe5 {[%clk 0:01:37]} 0-1


[Site "https://www.chess.com"]

[Event "Titled Tuesday Blitz March 01 Late 2022"]
[White "Sailer, Mike"]
[Black "Bon, Michael"]
[WhiteFideId "2012901"]
[BlackFideId "620696"]
[WhiteElo "2109"]
[BlackElo "2385"]
[Result "1-0"]
[Round "06"]
[TimeControl "180+1"]
[Date "2022.03.02"]
[WhiteClock "0:00:41"]
[BlackClock "0:00:03"]

1. d4 {[%clk 0:03:00]}  Nf6 {[%clk 0:02:59]} 2. Nf3 {[%clk 0:03:00]}  c5 {[%clk 0:02:59]} 3. Bf4 {[%clk 0:02:57]}  cxd4 {[%clk 0:02:56]} 4. Bxb8 {[%clk 0:02:52]}  Rxb8 {[%clk 0:02:53]} 5. Qxd4 {[%clk 0:02:52]}  b6 {[%clk 0:02:31]} 6. Nc3 {[%clk 0:02:49]}  Bb7 {[%clk 0:02:26]} 7. e4 {[%clk 0:02:46]}  e6 {[%clk 0:02:16]} 8. O-O-O {[%clk 0:02:34]}  Bc5 {[%clk 0:02:14]} 9. Qd2 {[%clk 0:02:32]}  Nxe4 {[%clk 0:02:04]} 10. Nxe4 {[%clk 0:02:26]}  Bxe4 {[%clk 0:02:05]} 11. Ne5 {[%clk 0:02:08]}  d6 {[%clk 0:01:25]} 12. Bb5+ {[%clk 0:01:52]}  Kf8 {[%clk 0:01:20]} 13. Nd7+ {[%clk 0:01:30]}  Kg8 {[%clk 0:00:52]} 14. Nxb8 {[%clk 0:01:29]}  Qxb8 {[%clk 0:00:53]} 15. b4 {[%clk 0:01:24]}  a6 {[%clk 0:00:48]} 16. Bf1 {[%clk 0:01:15]}  Qc7 {[%clk 0:00:02]} 17. bxc5 {[%clk 0:01:06]}  Qxc5 {[%clk 0:00:03]} 18. f3 {[%clk 0:01:01]}  Qa3+ {[%clk 0:00:01]} 19. Kb1 {[%clk 0:01:00]}  Bd5 {[%clk 0:00:02]} 20. c4 {[%clk 0:00:54]}  Bb7 {[%clk 0:00:02]} 21. Qxd6 {[%clk 0:00:45]}  Qxd6 {[%clk 0:00:03]} 22. Rxd6 {[%clk 0:00:44]}  g6 {[%clk 0:00:03]} 23. Rd8+ {[%clk 0:00:41]} 1-0


[Site "https://www.chess.com"]